bitfinex/quotes_SOLUSD_20240913
["timestamp","ask_amount","ask_price","bid_price","bid_amount"]
[1726205053926,23.776884,134.95,134.9,6.5904]
[1726205054714,46.3174144,134.96,134.9,6.5904]
[1726205055850,53.7270144,134.96,134.9,6.5904]
[1726205056705,0.2505304,134.96,134.9,6.5904]
[1726205056925,7.6601304,134.96,134.9,6.5904]
[1726205057130,29.9501304,134.96,134.9,6.5904]
[1726205057832,29.7001,134.95,134.9,6.5904]
[1726205058023,23.776884,134.94,134.9,6.5904]
[1726205059424,23.776884,134.95,134.9,6.5904]
[1726205073727,46.066884,134.95,134.9,6.5904]
[1726205074040,46.066884,134.93,134.9,6.5904]
[1726205074541,23.776884,134.94,134.9,6.5904]
[1726205076019,53.477584,134.94,134.9,6.5904]
[1726205077228,0.12549,134.93,134.9,6.5904]
[1726205079618,23.776884,134.92,134.9,6.5904]
[1726205081046,46.066884,134.92,134.88,16.4392]
[1726205081363,53.478984,134.92,134.88,16.4392]
[1726205099464,23.776884,134.9,134.88,16.4392]
[1726205101460,23.776884,134.9,134.87,6.0295]
[1726205115371,53.489784,134.9,134.85,15.9483]
[1726205125665,29.7135,134.89,134.85,15.9483]
[1726205125874,23.776884,134.88,134.85,15.9483]
[1726205128753,53.490984,134.88,134.85,15.9483]
[1726205129866,23.776884,134.86,134.85,15.9483]
[1726205152583,23.776884,134.88,134.85,15.9483]
[1726205169403,22.3,134.92,134.86,16.38957276]
[1726205169605,22.3,134.92,134.85,15.9483]
[1726205169606,7.4121,134.92,134.85,15.9483]
[1726205170288,29.7121,134.92,134.85,15.9483]
[1726205170698,23.776884,134.91,134.85,15.9483]
[1726205173885,23.776884,134.91,134.85,30.85474344]
[1726205175085,7.411,134.94,134.88,16.6173]
[1726205175283,20.0,134.94,134.88,16.6173]
[1726205175485,22.3,134.93,134.88,16.6173]
[1726205175687,29.7112,134.93,134.88,16.6173]
[1726205175914,27.4109,134.94,134.88,16.6173]
[1726205176498,23.776884,134.93,134.88,16.6173]
[1726205182388,23.776884,134.9,134.88,16.6173]
[1726205182703,22.3,134.92,134.88,16.6173]
[1726205182704,23.776884,134.91,134.88,16.6173]
[1726205183410,23.776884,134.9,134.88,16.6173]
[1726205184491,23.776884,134.89,134.88,16.6173]
[1726205186315,23.776884,134.9,134.85,15.5742]
[1726205186506,29.7135,134.89,134.85,15.5742]
[1726205186810,23.776884,134.88,134.85,15.5742]
[1726205189227,23.776884,134.89,134.85,15.5742]
[1726205189586,23.776884,134.9,134.85,15.5742]
[1726205190897,23.776884,134.91,134.85,30.48064344]
[1726205191216,37.0364,135.01,134.82,0.2505304]
[1726205191217,0.2505304,134.96,134.89,16.6174]
[1726205191921,29.7114,134.93,134.89,16.6174]
[1726205192516,23.776884,134.92,134.89,16.6174]
[1726205194805,23.776884,134.93,134.89,16.6174]
[1726205197898,46.076884,134.95,134.89,16.6174]
[1726205198103,53.487084,134.95,134.89,16.6174]
[1726205208045,20.0,134.95,134.89,16.6174]
[1726205209046,27.4101,134.95,134.89,16.6174]
[1726205209453,23.776884,134.94,134.89,16.6174]
[1726205217368,31.187584,134.94,134.89,16.6174]
[1726205218467,23.776884,134.94,134.89,16.6174]
[1726205219642,31.187684,134.94,134.89,16.6174]
[1726205219857,7.4112,134.93,134.89,16.6174]
[1726205220157,23.776884,134.92,134.89,16.6174]
[1726205220966,31.188784,134.92,134.89,16.6174]
[1726205221468,23.776884,134.9,134.86,16.502]
[1726205235846,7.4119,134.92,134.86,16.502]
[1726205237164,23.776884,134.91,134.86,16.502]
[1726205239451,23.776884,134.92,134.86,16.502]
[1726205240254,13.776884,134.92,134.86,16.502]
[1726205241774,21.188784,134.92,134.86,16.502]
[1726205244980,7.4124,134.91,134.86,16.502]
[1726205252180,22.3,134.91,134.86,16.502]
[1726205252482,7.4136,134.89,134.86,16.502]
[1726205253161,7.413,134.9,134.86,16.502]
[1726205253480,31.189884,134.9,134.86,16.502]
[1726205265385,23.776884,134.91,134.86,31.40844344]
[1726205265568,23.776884,134.91,134.87,6.0055]
[1726205266471,7.53739,134.92,134.87,6.0055]
[1726205266472,7.4119,134.92,134.87,6.0055]
[1726205267589,20.0,134.92,134.87,6.0055]
[1726205269007,29.7114,134.93,134.87,6.0055]
[1726205273497,7.4114,134.93,134.87,6.0055]
[1726205279388,7.4118,134.92,134.87,6.0055]
[1726205279594,22.3,134.91,134.87,6.0055]
[1726205279919,31.189884,134.9,134.87,6.0055]
[1726205281920,7.4136,134.89,134.87,6.0055]
[1726205282123,7.4139,134.88,134.86,16.502]
[1726205282305,22.3,134.88,134.83,16.5737]
[1726205282618,46.076884,134.86,134.83,16.5737]
[1726205282941,46.076884,134.86,134.82,0.2505304]
[1726205282942,53.493584,134.83,134.82,0.2505304]
[1726205283233,53.744564,134.83,134.77,0.2505304]
[1726205283432,7.419,134.79,134.77,0.2505304]
[1726205283722,0.25098,134.82,134.77,0.2505304]
[1726205283723,53.495284,134.8,134.77,0.2505304]
[1726205284296,7.4191,134.79,134.77,0.2505304]
[1726205286102,7.4194,134.78,134.77,0.2505304]
[1726205286323,53.621774,134.78,134.77,0.2505304]
[1726205286628,31.321774,134.78,134.77,0.2505304]
[1726205286814,31.447264,134.78,134.77,0.2505304]
[1726205287927,31.321774,134.78,134.77,0.2505304]
[1726205289130,51.321774,134.78,134.77,0.2505304]
[1726205289303,51.447264,134.78,134.77,0.2505304]
[1726205306625,73.747264,134.78,134.77,0.2505304]
[1726205307026,51.447264,134.78,134.77,0.2505304]
[1726205308521,51.321774,134.78,134.77,0.2505304]
[1726205309553,43.776884,134.78,134.77,0.2505304]
[1726205310752,7.4191,134.79,134.77,0.2505304]
[1726205311321,23.776884,134.79,134.77,0.2505304]
[1726205311542,7.4185,134.8,134.77,0.2505304]
[1726205312353,7.4179,134.81,134.77,0.2505304]
[1726205316341,7.54279,134.82,134.77,0.2505304]
[1726205316541,7.54279,134.82,134.78,15.0644]
[1726205317522,7.418,134.81,134.78,15.0644]
[1726205317722,7.4184,134.8,134.78,15.0644]
[1726205317924,23.776884,134.8,134.78,15.0644]
[1726205318135,23.776884,134.8,134.77,0.2505304]
[1726205319035,7.4189,134.79,134.77,0.2505304]
[1726205320044,31.196284,134.78,134.77,0.2505304]
[1726205320244,31.321774,134.78,134.77,0.2505304]
[1726205320753,7.419,134.79,134.77,0.2505304]
[1726205321841,7.4184,134.8,134.77,0.2505304]
[1726205323130,42.42549,134.81,134.77,0.2505304]
[1726205323336,7.419,134.79,134.77,0.2505304]
[1726205325060,20.0,134.81,134.77,0.2505304]
[1726205325855,27.4181,134.81,134.77,0.2505304]
[1726205326955,49.7181,134.81,134.77,0.2505304]
[1726205327250,20.0,134.81,134.77,0.2505304]
[1726205327459,23.776884,134.82,134.77,0.2505304]
[1726205327639,31.194084,134.82,134.78,6.1813]
[1726205328666,23.776884,134.82,134.78,6.1813]
[1726205329162,53.494184,134.82,134.78,6.1813]
[1726205331064,46.076884,134.82,134.78,6.1813]
[1726205331441,23.776884,134.82,134.78,6.1813]
[1726205332764,29.84239,134.83,134.79,16.5446]
[1726205341167,7.54239,134.83,134.79,16.5446]
[1726205341349,7.4169,134.83,134.79,16.5446]
[1726205345652,73.493184,134.84,134.79,16.5446]
[1726205346552,29.7168,134.83,134.79,16.5446]
[1726205352682,22.3,134.8,134.79,16.5446]
[1726205352869,46.076884,134.8,134.79,16.5446]
[1726205353779,29.96838,134.82,134.79,16.5446]
[1726205353978,23.776884,134.81,134.79,16.5446]
[1726205354372,46.076884,134.81,134.79,16.5446]
[1726205354860,53.494784,134.81,134.79,16.5446]
[1726205355873,53.494784,134.81,134.77,0.2505304]
[1726205358065,29.7185,134.8,134.77,0.2505304]
[1726205358261,22.3,134.79,134.77,0.2505304]
[1726205359995,29.7189,134.79,134.77,0.2505304]
[1726205360154,7.4194,134.78,134.77,0.2505304]
[1726205360360,46.076884,134.78,134.77,0.2505304]
[1726205360555,23.776884,134.78,134.77,0.2505304]
[1726205360756,23.776884,134.79,134.77,0.2505304]
[1726205360971,23.776884,134.8,134.77,0.2505304]
[1726205361162,7.4178,134.81,134.77,0.2505304]
[1726205361885,22.3,134.8,134.77,0.2505304]
[1726205364559,23.776884,134.8,134.77,0.2505304]
[1726205364760,44.61,134.85,134.77,0.2505304]
[1726205365088,7.4166,134.84,134.77,15.15697384]
[1726205365386,7.4166,134.84,134.78,14.90644344]
[1726205365683,22.3,134.83,134.78,14.90644344]
[1726205365894,22.3,134.83,134.77,15.15697384]
[1726205366384,22.3,134.83,134.77,0.2505304]
[1726205366570,22.3,134.83,134.77,15.15697384]
[1726205375199,53.494284,134.82,134.77,0.2505304]
[1726205375372,53.619774,134.82,134.77,0.2505304]
[1726205384506,46.202374,134.82,134.77,0.2505304]
[1726205385298,46.076884,134.82,134.77,0.2505304]
[1726205387696,46.076884,134.83,134.77,0.2505304]
[1726205388277,46.076884,134.83,134.77,15.15697384]
[1726205389002,22.3,134.83,134.77,15.15697384]
[1726205389180,20.0,134.83,134.78,21.15724344]
[1726205389377,20.0,134.83,134.79,16.4617]
[1726205391504,22.3,134.84,134.79,16.4617]
[1726205399191,22.3,134.85,134.8,14.90644344]
[1726205399394,22.31,134.87,134.8,14.90644344]
[1726205400399,29.7247,134.87,134.8,14.90644344]
[1726205400601,46.086884,134.86,134.8,14.90644344]
[1726205400803,46.086884,134.86,134.79,31.36814344]
[1726205401115,46.086884,134.86,134.79,16.4617]
[1726205401703,53.502084,134.86,134.79,16.4617]
[1726205403001,22.31,134.84,134.79,16.4617]
[1726205407506,46.086884,134.86,134.8,14.90644344]
[1726205409907,23.776884,134.87,134.82,16.5488]
[1726205410126,44.61,134.9,134.82,16.5488]
[1726205410127,22.31,134.88,134.82,16.5488]
[1726205410429,22.31,134.88,134.82,31.45524344]
[1726205410614,52.023,134.9,134.82,31.45524344]
[1726205410813,7.4124,134.91,134.84,14.90644344]
[1726205411003,22.31,134.91,134.86,15.3242]
[1726205411708,52.2726304,134.92,134.86,15.3242]
[1726205412222,7.4124,134.91,134.86,15.3242]
[1726205412638,23.776884,134.9,134.86,15.3242]
[1726205416304,31.189784,134.9,134.86,15.3242]
[1726205419434,23.776884,134.9,134.86,15.3242]
[1726205428537,53.499784,134.9,134.86,15.3242]
[1726205428835,29.7237,134.89,134.86,15.3242]
[1726205429039,22.43549,134.88,134.86,15.3242]
[1726205429215,53.499884,134.9,134.86,15.3242]
[1726205429541,0.12549,134.89,134.86,15.3242]
[1726205430233,29.84939,134.89,134.86,15.3242]
[1726205430550,22.43549,134.89,134.86,15.3242]
[1726205431121,0.12549,134.89,134.86,15.3242]
[1726205431821,22.43549,134.89,134.86,15.3242]
[1726205435332,46.086884,134.88,134.86,15.3242]
[1726205435529,7.415,134.87,134.83,15.1237]
[1726205435838,53.627474,134.86,134.83,15.1237]
[1726205437232,46.212374,134.86,134.83,15.1237]
[1726205437451,22.31,134.88,134.83,15.1237]
[1726205438339,29.7241,134.88,134.83,15.1237]
[1726205440730,23.776884,134.87,134.83,15.1237]
[1726205442150,22.31,134.88,134.83,15.1237]
[1726205444342,29.724,134.88,134.83,15.1237]
[1726205444529,46.086884,134.87,134.83,15.1237]
[1726205444855,53.501384,134.87,134.83,15.1237]
[1726205445648,22.31,134.85,134.83,15.1237]
[1726205447011,22.31,134.86,134.83,15.1237]
[1726205448358,23.902374,134.87,134.83,15.1237]
[1726205448540,46.212374,134.87,134.83,15.1237]
[1726205449861,7.4141,134.88,134.83,15.1237]
[1726205449862,29.7241,134.88,134.83,15.1237]
[1726205450263,22.31,134.86,134.83,15.1237]
[1726205450455,24.027864,134.87,134.83,15.1237]
[1726205450634,23.902374,134.87,134.83,15.1237]
[1726205450961,7.4141,134.88,134.83,15.1237]
[1726205450962,29.7241,134.88,134.83,15.1237]
[1726205451655,22.31,134.89,134.83,15.1237]
[1726205452246,29.7235,134.89,134.83,15.1237]
[1726205457152,66.086884,134.89,134.83,15.1237]
[1726205458666,73.500684,134.89,134.83,15.1237]
[1726205459042,22.31,134.87,134.83,15.1237]
[1726205459863,29.7247,134.87,134.83,15.1237]
[1726205460070,46.086884,134.86,134.83,15.1237]
[1726205463874,90.696884,134.86,134.83,15.1237]
[1726205464169,46.086884,134.86,134.83,15.1237]
[1726205468795,53.501984,134.86,134.83,15.1237]
[1726205474079,44.61,134.85,134.83,15.1237]
[1726205474264,22.31,134.85,134.83,15.1237]
[1726205477082,22.31,134.85,134.82,6.2671]
[1726205478158,22.31,134.83,134.8,15.595]
[1726205482661,46.212374,134.82,134.8,15.595]
[1726205483481,53.629674,134.82,134.78,6.1375]
[1726205483691,29.7278,134.81,134.77,0.2505304]
[1726205483986,46.086884,134.8,134.77,0.2505304]
[1726205486458,23.776884,134.8,134.77,0.2505304]
[1726205486667,20.0,134.82,134.77,0.2505304]
[1726205487385,22.31,134.83,134.77,15.15697384]
[1726205487623,66.93,134.88,134.78,6.5903]
[1726205487789,66.93,134.88,134.78,21.49674344]
[1726205488088,22.31,134.84,134.78,6.5903]
[1726205488262,22.31,134.81,134.78,6.5903]
[1726205489164,22.31,134.82,134.78,6.5903]
[1726205494577,22.31,134.8,134.77,0.2505304]
[1726205496797,23.776884,134.81,134.77,0.2505304]
[1726205497003,43.776884,134.83,134.77,0.2505304]
[1726205497291,0.12549,134.82,134.77,0.2505304]
[1726205500800,73.503784,134.83,134.77,0.2505304]
[1726205507411,22.31,134.81,134.77,0.2505304]
[1726205508283,29.7278,134.81,134.77,0.2505304]
[1726205508601,29.85289,134.82,134.77,0.2505304]
[1726205508809,46.212374,134.81,134.77,0.2505304]
[1726205510001,64.62,134.83,134.77,0.2505304]
[1726205510002,42.31,134.83,134.77,0.2505304]
[1726205510305,44.62,134.85,134.77,0.2505304]
[1726205510306,22.31,134.84,134.77,0.2505304]
[1726205510485,22.31,134.84,134.78,37.12544344]
[1726205510686,52.0352,134.86,134.78,37.12544344]
[1726205511095,22.31,134.85,134.78,37.12544344]
[1726205511905,22.31,134.85,134.78,22.219]
[1726205518309,29.7252,134.86,134.79,15.8254]
[1726205523311,20.0,134.86,134.79,15.8254]
[1726205523609,73.501084,134.88,134.81,15.5225]
[1726205523902,73.501084,134.88,134.81,17.00574407]
[1726205524104,22.31,134.88,134.82,6.0963]
[1726205524311,22.31,134.88,134.83,15.7422]
[1726205531211,29.724,134.88,134.83,15.7422]
[1726205531418,22.31,134.86,134.83,15.7422]
[1726205536997,23.776884,134.87,134.83,15.7422]
[1726205539104,46.086884,134.87,134.83,15.7422]
[1726205550722,53.501384,134.87,134.83,15.7422]
[1726205552623,29.7251,134.86,134.83,15.7422]
[1726205554119,22.31,134.86,134.83,15.7422]
[1726205559413,22.31,134.85,134.82,6.0963]
[1726205560441,29.7259,134.85,134.82,6.0963]
[1726205561825,7.4171,134.83,134.78,16.5465]
[1726205562024,46.086884,134.81,134.78,16.5465]
[1726205562342,46.086884,134.81,134.77,0.2505304]
[1726205562343,7.4194,134.78,134.77,0.2505304]
[1726205563234,29.729,134.79,134.77,0.2505304]
[1726205563535,46.086884,134.78,134.77,0.2505304]
[1726205566139,7.419,134.79,134.77,0.2505304]
[1726205566140,22.31,134.79,134.77,0.2505304]
[1726205574548,42.31,134.8,134.77,0.2505304]
[1726205575047,49.7284,134.8,134.77,0.2505304]
[1726205581763,53.505784,134.79,134.77,0.2505304]
[1726205589160,52.764384,134.78,134.77,0.2505304]
[1726205591672,52.889874,134.78,134.77,0.2505304]
[1726205592261,46.086884,134.78,134.77,0.2505304]
[1726205597945,6.6766,134.8,134.77,0.2505304]
[1726205598152,42.31,134.8,134.77,0.2505304]
[1726205599152,48.9867,134.8,134.77,0.2505304]
[1726205599354,46.086884,134.79,134.77,0.2505304]
[1726205600955,42.31,134.8,134.77,0.2505304]
[1726205604472,22.31,134.8,134.77,0.2505304]
[1726205604662,44.62,134.83,134.77,0.2505304]
[1726205604663,66.086884,134.82,134.77,0.2505304]
[1726205605668,46.086884,134.82,134.77,0.2505304]
[1726205605871,22.31,134.82,134.78,16.5852]
[1726205606265,22.31,134.83,134.78,16.5852]
[1726205606660,20.0,134.84,134.78,23.0179]
[1726205606972,22.31,134.85,134.79,1.48359456]
[1726205607356,22.31,134.85,134.78,37.92434344]
[1726205607560,22.31,134.85,134.79,1.48349625]
[1726205607873,73.6037,134.86,134.78,37.92434344]
[1726205608085,28.9837,134.86,134.78,37.92434344]
[1726205608400,28.9837,134.86,134.79,1.48347535]
[1726205608754,28.9837,134.86,134.79,1.48347689]
[1726205608955,23.776884,134.85,134.8,1.48347706]
[1726205609269,23.776884,134.85,134.78,37.92434344]
[1726205609467,23.776884,134.85,134.79,1.48347674]
[1726205609873,23.776884,134.85,134.78,37.92434344]
[1726205610053,22.31,134.87,134.79,31.42694344]
[1726205610253,22.31,134.87,134.8,6.4474]
[1726205610452,28.9832,134.87,134.8,6.4474]
[1726205611566,46.212374,134.86,134.8,6.4474]
[1726205612269,6.6741,134.85,134.8,6.4474]
[1726205614673,28.9841,134.85,134.8,6.4474]
[1726205616275,15.2376,134.89,134.8,6.4474]
[1726205616276,28.9852,134.83,134.8,6.4474]
[1726205616577,24.027864,134.84,134.8,6.4474]
[1726205616578,46.212374,134.84,134.8,6.4474]
[1726205616776,46.086884,134.84,134.8,6.4474]
[1726205617479,23.776884,134.84,134.8,6.4474]
[1726205617659,28.9844,134.85,134.8,6.4474]
[1726205620577,29.10909,134.86,134.8,6.4474]
[1726205621057,46.086884,134.85,134.8,6.4474]
[1726205621667,52.760984,134.85,134.8,6.4474]
[1726205626587,6.6747,134.84,134.8,6.4474]
[1726205626774,52.762084,134.83,134.8,6.4474]
[1726205627084,23.776884,134.83,134.8,6.4474]
[1726205627995,23.902374,134.84,134.8,6.4474]
[1726205628391,6.6756,134.82,134.8,6.4474]
[1726205628586,6.6756,134.82,134.79,16.5205]
[1726205629400,28.9856,134.82,134.79,16.5205]
[1726205632131,28.9856,134.82,134.77,6.5195304]
[1726205633095,22.31,134.8,134.77,6.5195304]
[1726205633311,22.31,134.8,134.77,0.2505304]
[1726205633588,28.9865,134.8,134.77,0.2505304]
[1726205636965,46.086884,134.8,134.77,0.2505304]
[1726205639387,52.763484,134.8,134.77,0.2505304]
[1726205643789,46.086884,134.8,134.77,0.2505304]
[1726205644098,72.764384,134.78,134.77,0.2505304]
[1726205644406,73.015364,134.78,134.77,0.2505304]
[1726205644572,72.889874,134.78,134.77,0.2505304]
[1726205645297,46.212374,134.78,134.77,0.2505304]
[1726205645496,20.0,134.79,134.77,0.2505304]
[1726205645670,43.776884,134.79,134.77,0.2505304]
[1726205645871,52.763884,134.79,134.77,0.2505304]
[1726205647688,52.764384,134.78,134.77,0.2505304]
[1726205648004,52.889874,134.78,134.77,0.2505304]
[1726205648798,46.086884,134.78,134.77,0.2505304]
[1726205651112,72.764384,134.78,134.77,0.2505304]
[1726205651282,72.889874,134.78,134.77,0.2505304]
[1726205663305,117.509874,134.78,134.77,0.2505304]
[1726205665712,117.635364,134.78,134.77,0.2505304]
[1726205686236,117.509874,134.78,134.77,0.2505304]
[1726205686442,72.889874,134.78,134.77,0.2505304]
[1726205686746,43.776884,134.78,134.77,0.2505304]
[1726205688242,66.086884,134.78,134.77,0.2505304]
[1726205695245,46.086884,134.78,134.77,0.2505304]
[1726205701321,52.764384,134.78,134.77,0.2505304]
[1726205701528,22.31,134.75,134.73,0.2505304]
[1726205702654,46.086884,134.75,134.73,0.2505304]
[1726205709029,6.6781,134.77,134.73,0.2505304]
[1726205709231,22.32,134.76,134.73,0.2505304]
[1726205709652,22.32,134.77,134.73,0.2505304]
[1726205710753,42.32,134.78,134.73,0.2505304]
[1726205713699,6.678,134.77,134.73,0.2505304]
[1726205713848,48.9979,134.78,134.73,0.2505304]
[1726205714153,46.096884,134.77,134.73,0.2505304]
[1726205714754,42.32,134.78,134.73,0.2505304]
[1726205715675,6.6782,134.77,134.73,0.2505304]
[1726205715844,42.32,134.78,134.73,0.2505304]
[1726205716465,28.9976,134.78,134.73,0.2505304]
[1726205717268,29.12259,134.79,134.73,0.2505304]
[1726205719968,22.32,134.77,134.73,0.2505304]
[1726205730360,0.12549,134.79,134.73,0.2505304]
[1726205730559,42.44549,134.79,134.73,0.2505304]
[1726205731865,49.12269,134.79,134.73,0.2505304]
[1726205734659,93.74269,134.79,134.73,0.2505304]
[1726205746089,28.9985,134.76,134.73,0.2505304]
[1726205747198,28.9981,134.77,134.73,0.2505304]
[1726205747374,23.776884,134.76,134.73,0.2505304]
[1726205747573,46.096884,134.76,134.73,0.2505304]
[1726205754681,52.775484,134.76,134.73,0.2505304]
[1726205754881,22.32,134.75,134.73,0.2505304]
[1726205763598,22.44549,134.77,134.73,0.2505304]
[1726205763781,22.32,134.77,134.73,0.2505304]
[1726205764192,64.62,134.79,134.73,0.2505304]
[1726205764388,20.0,134.79,134.73,0.2505304]
[1726205764607,22.32,134.78,134.73,0.2505304]
[1726205765208,28.9976,134.78,134.73,0.2505304]
[1726205766094,52.774984,134.77,134.73,0.2505304]
[1726205766289,46.096884,134.77,134.73,0.2505304]
[1726205766607,22.32,134.78,134.73,0.2505304]
[1726205768682,46.096884,134.77,134.73,0.2505304]
[1726205770307,22.32,134.77,134.73,0.2505304]
[1726205770503,22.32,134.78,134.73,0.2505304]
[1726205790604,22.32,134.81,134.75,15.1316]
[1726205791474,44.65,134.83,134.75,15.1316]
[1726205791642,66.97,134.83,134.75,15.1316]
[1726205791929,23.776884,134.81,134.75,15.1316]
[1726205792149,52.773284,134.81,134.75,15.1316]
[1726205792346,28.9969,134.8,134.75,15.1316]
[1726205793414,23.776884,134.81,134.75,15.1316]
[1726205793804,42.32,134.82,134.75,15.1316]
[1726205794009,20.0,134.82,134.75,30.03804344]
[1726205794416,26.6752,134.83,134.75,30.03804344]
[1726205794616,48.9952,134.83,134.75,30.03804344]
[1726205794821,6.6755,134.82,134.75,30.03804344]
[1726205797112,6.6755,134.82,134.75,15.1316]
[1726205800418,6.6761,134.81,134.75,15.1316]
[1726205801417,22.32,134.8,134.75,15.1316]
[1726205823131,22.32,134.82,134.75,30.03804344]
[1726205823334,6.6742,134.85,134.77,31.07104344]
[1726205823532,6.6742,134.85,134.73,0.2505304]
[1726205823533,6.6735,134.86,134.79,31.07104344]
[1726205824131,22.32,134.85,134.79,31.07104344]
[1726205824439,21.82,134.85,134.79,16.1646]
[1726205826846,28.4942,134.85,134.79,16.1646]
[1726205835736,73.1442,134.85,134.79,16.1646]
[1726205835954,28.4942,134.85,134.79,16.1646]
[1726205843064,6.6742,134.85,134.79,16.1646]
[1726205843365,6.6742,134.85,134.78,21.03264344]
[1726205843366,22.32,134.86,134.81,15.7819]
[1726205843876,6.6732,134.87,134.81,15.7819]
[1726205844043,29.2432304,134.88,134.81,15.7819]
[1726205844450,29.2432304,134.88,134.82,22.1875]
[1726205851550,30.450184,134.87,134.82,22.1875]
[1726205851914,6.6736,134.86,134.82,22.1875]
[1726205852274,6.6741,134.85,134.82,22.1875]
[1726205852752,28.9941,134.85,134.82,22.1875]
[1726205852958,6.6745,134.84,134.82,22.1875]
[1726205853362,28.9941,134.85,134.82,22.1875]
[1726205854927,6.6741,134.85,134.82,22.1875]
[1726205855878,28.9941,134.85,134.82,22.1875]
[1726205866087,73.6441,134.85,134.82,22.1875]
[1726205866283,28.9941,134.85,134.82,22.1875]
[1726205884696,20.0,134.86,134.82,22.1875]
[1726205885481,6.9232304,134.88,134.82,22.1875]
[1726205885682,29.2432304,134.88,134.82,22.1875]
[1726205888280,20.2505304,134.88,134.83,15.3074]
[1726205888605,20.2505304,134.88,134.84,6.4998]
[1726205888606,0.2505304,134.88,134.84,6.4998]
[1726205888986,0.2505304,134.88,134.84,21.40624344]
[1726205889176,0.2505304,134.88,134.85,15.9852]
[1726205890315,0.2505304,134.88,134.87,15.4847]
[1726205891404,0.2505304,134.88,134.87,16.96734233]
[1726205891904,0.2505304,134.88,134.87,15.4847]
[1726205892106,0.2505304,134.92,134.87,31.87366685]
[1726205892413,0.2505304,134.92,134.87,30.39114344]
[1726205896403,0.2505304,134.92,134.9,15.2522]
[1726205897599,0.2505304,134.92,134.91,6.4117]
[1726205898608,0.2505304,134.92,134.91,21.31814344]
[1726205900090,0.2505304,134.92,134.91,41.31814344]
[1726205901916,0.2505304,134.96,134.91,41.31814344]
[1726205903787,0.2505304,134.96,134.92,15.2357]
[1726205903987,0.2505304,134.96,134.92,30.14214344]
[1726205910117,0.2505304,134.96,134.92,15.2357]
[1726205918710,0.2505304,135.0,134.92,30.14214344]
[1726205920535,6.9172304,135.0,134.92,30.14214344]
[1726205926429,6.9172304,135.0,134.93,6.1418]
[1726205927817,0.2505304,135.0,134.93,21.04824344]
[1726205928046,0.2505304,135.0,134.94,16.6041]
[1726205929231,0.2505304,135.0,134.94,31.51054344]
[1726205931961,0.2505304,135.0,134.95,34.90644344]
[1726205932137,0.2505304,135.0,134.96,6.6125]
[1726205932311,0.2505304,135.04,134.96,6.6125]
[1726205932708,0.2505304,135.04,134.98,6.6672]
[1726205934324,6.6658,135.02,134.98,6.6672]
[1726205944140,23.776884,135.01,134.96,6.6125]
[1726205944367,6.6676,134.99,134.96,6.6125]
[1726205945136,6.6676,134.98,134.94,16.6041]
[1726205945340,6.6676,134.98,134.94,23.2733]
[1726205945543,6.6673,134.99,134.94,23.2733]
[1726205945748,23.902374,135.0,134.94,16.6041]
[1726205946233,6.6672,134.99,134.94,23.2733]
[1726205946434,6.6672,134.99,134.95,6.6689]
[1726205947525,22.5705304,135.04,134.97,6.6677]
[1726205947844,20.0,135.03,134.97,6.6677]
[1726205949342,6.6662,135.01,134.97,6.6677]
[1726205950840,6.667,135.0,134.94,16.6041]
[1726205951227,6.6663,135.01,134.94,16.6041]
[1726205951741,22.32,135.0,134.94,16.6041]
[1726205951932,6.6663,135.01,134.94,16.6041]
[1726205952132,6.6663,135.01,134.94,31.51054344]
[1726205952343,6.6663,135.01,134.97,6.6678]
[1726205952741,30.442684,135.02,134.97,6.6678]
[1726205953249,6.6661,135.01,134.97,6.6678]
[1726205953456,20.0,135.03,134.98,22.9818]